fUSD/lending_fUSD_20250602
["ID","MTS","AMOUNT","RATE_DAILY","PERIOD"]
[363779586,1748868664579,-420.0,0.00019863,2]
[363779587,1748868664589,-429.5,0.00019863,2]
[363779588,1748868664599,-420.0,0.00019863,2]
[363779589,1748868664611,-420.0,0.00019863,2]
[363779590,1748868664621,-420.0,0.00019863,2]
[363779591,1748868664630,-580.65,0.00019863,2]
[363779592,1748868664641,-420.0,0.00019863,2]
[363779593,1748868664651,-420.0,0.00019863,2]
[363779594,1748868664660,-790.0,0.00019863,2]
[363779595,1748868664669,-420.0,0.00019863,2]
[363779596,1748868664679,-468.55,0.00019863,2]
[363779597,1748868664688,-936.76,0.00019863,2]
[363779598,1748868664698,-1765.14,0.00019863,2]
[363779599,1748868664708,-420.0,0.00019863,2]
[363779600,1748868664717,-1401.04,0.00019863,2]
[363779601,1748868664727,-498.84,0.00019863,2]
[363779602,1748868664736,-420.0,0.00019863,2]
[363779603,1748868664747,-420.0,0.00019863,2]
[363779604,1748868664757,-420.0,0.00019863,2]
[363779605,1748868664767,-420.0,0.00019863,2]
[363779606,1748868664777,-579.01,0.00019863,2]
[363779607,1748868664787,-420.0,0.00019863,2]
[363779608,1748868664797,-2331.26,0.00019863,2]
[363779609,1748868664807,-573.08,0.00019863,2]
[363779610,1748868664818,-844.27,0.00019863,2]
[363779611,1748868664831,-420.0,0.00019863,2]
[363779612,1748868664840,-1309.79,0.00019863,2]
[363779613,1748868664851,-2934.36,0.00019863,2]
[363779614,1748868664863,-1763.08,0.00019863,2]
[363779615,1748868664873,-420.0,0.00019863,2]
[363779616,1748868664883,-420.0,0.00019863,2]
[363779617,1748868664894,-420.0,0.00019863,2]
[363779618,1748868664905,-2355.75,0.00019863,2]
[363779619,1748868664914,-420.0,0.00019863,2]
[363779620,1748868664924,-420.0,0.00019863,2]
[363779621,1748868664934,-1326.49,0.00019863,2]
[363779622,1748868664944,-420.0,0.00019863,2]
[363779623,1748868664955,-420.0,0.00019863,2]
[363779624,1748868664966,-420.0,0.00019863,2]
[363779625,1748868664976,-420.0,0.00019863,2]
[363779626,1748868664986,-420.0,0.00019863,2]
[363779627,1748868664996,-1329.42,0.00019863,2]
[363779628,1748868665007,-420.0,0.00019863,2]
[363779629,1748868665017,-420.0,0.00019863,2]
[363779630,1748868665027,-420.0,0.00019863,2]
[363779631,1748868665036,-913.78,0.00019863,2]
[363779632,1748868665046,-420.0,0.00019863,2]
[363779633,1748868665055,-420.0,0.00019863,2]
[363779634,1748868665066,-2903.51,0.00019863,2]
[363779635,1748868665076,-534.17,0.00019863,2]
[363779636,1748868665086,-675.23,0.00019863,2]
[363779637,1748868665096,-420.0,0.00019863,2]
[363779638,1748868665105,-420.0,0.00019863,2]
[363779639,1748868665115,-420.0,0.00019863,2]
[363779640,1748868665127,-1161.16,0.00019863,2]
[363779641,1748868665136,-693.48,0.00019863,2]
[363779642,1748868665148,-3113.02,0.00019863,2]
[363779643,1748868665158,-428.82,0.00019863,2]
[363779644,1748868665169,-420.0,0.00019863,2]
[363779645,1748868665180,-581.6,0.00019863,2]
[363779646,1748868665189,-420.0,0.00019863,2]
[363779647,1748868665200,-448.42,0.00019863,2]
[363779648,1748868665210,-972.65,0.00019863,2]
[363779649,1748868665220,-593.57,0.00019863,2]
[363779650,1748868665230,-420.0,0.00019863,2]
[363779651,1748868665240,-420.0,0.00019863,2]
[363779652,1748868665250,-614.98,0.00019863,2]
[363779653,1748868665260,-375.91160684,0.00019863,2]
[363779654,1748868665270,-420.0,0.00019863,2]
[363779655,1748868665279,-420.0,0.00019863,2]
[363779656,1748868665289,-659.87,0.00019863,2]
[363779657,1748868665298,-420.0,0.00019863,2]
[363779658,1748868665308,-242.42389439,0.00019863,2]
[363779659,1748868665318,-1440.83,0.00019863,2]
[363779660,1748868665328,-2110.0,0.0001989,2]
[363779661,1748868665338,-160.79232204,0.00019891,2]
[363779662,1748868665348,-36335.93838457,0.000199,2]
[363779663,1748868665358,-45245.09756348,0.000199,2]
[363779664,1748868665368,-2255.10096463,0.000199,2]
[363779665,1748868665377,-700.0,0.000199,7]
[363779666,1748868665387,-6020.27730831,0.000199,2]
[363779667,1748868665399,-205.64641004,0.000199,3]
[363779668,1748868665408,-1152.0,0.000199,2]
[363779669,1748868665419,-2110.0,0.00019918,2]
[363779670,1748868665428,-1048.0,0.00019924,2]
[363779671,1748868665438,-1941.56534051,0.0001994,2]
[363779672,1748868665447,-162.21107944,0.0001994,2]
[363779673,1748868665457,-168.01978505,0.0001994,2]
[363779674,1748868665466,-1232.13968575,0.0001994,2]
[363779675,1748868665476,-1263.9110044,0.0001994,2]
[363779676,1748868665486,-168.65677843,0.0001994,2]
[363779677,1748868665495,-2129.71894019,0.00019945,2]
[363779678,1748868665505,-943.0,0.00019957,2]
[363779679,1748868665515,-1467.0,0.00019957,2]
[363779680,1748868665525,-635.0,0.00019957,2]
[363779681,1748868665535,-801.0,0.00019957,2]
[363779682,1748868665544,-1271.0,0.00019957,2]
[363779683,1748868665554,-557.0,0.00019957,2]
[363779684,1748868665564,-925.0,0.00019957,2]
[363779685,1748868665574,-588.0,0.00019957,2]
[363779686,1748868665583,-289.136,0.00019957,2]
[363779687,1748868665593,-7010.0,0.00019957,2]
[363779688,1748868665603,-4202.265,0.00019957,2]
[363779689,1748868665613,-882.0,0.00019957,2]
[363779690,1748868665624,-5800.0,0.00019958,2]
[363779691,1748868665635,-5800.0,0.00019966,2]
[363779692,1748868665645,-500.0,0.00019972,2]
[363779693,1748868665655,-500.0,0.00019972,2]
[363779694,1748868665664,-500.0,0.00019973,2]
[363779695,1748868665674,-500.0,0.00019973,2]
[363779696,1748868665684,-500.0,0.00019973,2]
[363779697,1748868665694,-418.7187432,0.00019973,2]
[363779698,1748868665703,-500.0,0.00019973,2]
[363779699,1748868665713,-500.0,0.00019973,2]
[363779700,1748868665723,-604.20950716,0.00019973,2]
[363779701,1748868665732,-500.0,0.00019973,2]
[363779702,1748868665742,-500.0,0.00019973,2]
[363779703,1748868665751,-500.0,0.00019973,2]
[363779704,1748868665761,-500.0,0.00019973,2]
[363779705,1748868665771,-500.0,0.00019973,2]
[363779706,1748868665780,-500.0,0.00019973,2]
[363779707,1748868665790,-500.0,0.00019973,2]
[363779708,1748868665799,-500.0,0.00019973,2]
[363779709,1748868665808,-500.0,0.00019973,2]
[363779710,1748868665818,-500.0,0.00019973,2]
[363779711,1748868665831,-12500.0,0.00019973,2]
[363779712,1748868665840,-5800.0,0.00019975,2]
[363779713,1748868665850,-5800.0,0.00019983,2]
[363779714,1748868665860,-1195.85,0.0001999,2]
[363779715,1748868665871,-1195.85,0.0001999,2]
[363779716,1748868665881,-1195.85,0.0001999,2]
[363779717,1748868665891,-1195.85,0.0001999,2]
[363779718,1748868665902,-1195.85,0.0001999,2]
[363779719,1748868665912,-1195.85,0.0001999,2]
[363779720,1748868665922,-1195.85,0.0001999,2]
[363779721,1748868665932,-1195.85,0.0001999,2]
[363779722,1748868665942,-1195.85,0.0001999,2]
[363779723,1748868665952,-1195.85,0.0001999,2]
[363779724,1748868665961,-1195.85,0.0001999,2]
[363779725,1748868665970,-1195.85,0.0001999,2]
[363779726,1748868665980,-1195.85,0.0001999,2]
[363779727,1748868666140,-1195.85,0.0001999,2]
[363779728,1748868666151,-1195.85,0.0001999,2]
[363779729,1748868666161,-1195.85,0.0001999,2]
[363779730,1748868666171,-1195.85,0.0001999,2]
[363779731,1748868666181,-1195.85,0.0001999,2]
[363779732,1748868666193,-1195.85,0.0001999,2]
[363779733,1748868666203,-1195.85,0.0001999,2]
[363779734,1748868666213,-1195.85,0.0001999,2]
[363779735,1748868666223,-1195.85,0.0001999,2]
[363779736,1748868666233,-1195.85,0.0001999,2]
[363779737,1748868666242,-1196.00841982,0.0001999,2]
[363779738,1748868666252,-10302.1607655,0.00019991,2]
[363779739,1748868666261,-71906.1809685,0.00019991,2]
[363779740,1748868666271,-2275.393328,0.00019991,2]
[363779741,1748868666282,-399.1041818,0.00019991,2]
[363779742,1748868666291,-5856.4779627,0.00019991,2]
[363779743,1748868666301,-28304.8995425,0.00019991,2]
[363779744,1748868666311,-5800.0,0.00019992,2]
[363779745,1748868666319,-666.0,0.00019999,2]
[363779746,1748868666330,-300.0,0.00019999,2]
[363779747,1748868666340,-300.0,0.00019999,2]
[363779748,1748868666351,-300.0,0.00019999,2]
[363779749,1748868666362,-300.0,0.00019999,2]
[363779750,1748868666371,-1000.0,0.00019999,2]
[363779751,1748868666383,-500.0,0.00019999,2]
[363779752,1748868666397,-500.0,0.00019999,2]
[363779753,1748868666408,-187.69,0.00019999,2]
[363779754,1748868666419,-500.0,0.00019999,2]
[363779755,1748868666429,-500.0,0.00019999,2]
[363779756,1748868666439,-500.0,0.00019999,2]
[363779757,1748868666449,-473.48,0.00019999,2]
[363779758,1748868666459,-500.0,0.00019999,2]
[363779759,1748868666469,-500.0,0.00019999,2]
[363779760,1748868666479,-307.3456118,0.00019999,2]
[363779761,1748868666489,-500.0,0.00019999,2]
[363779762,1748868666501,-500.0,0.00019999,2]
[363779763,1748868666510,-500.0,0.00019999,2]
[363779764,1748868666520,-460.92904163,0.00019999,2]
[363779765,1748868666530,-500.0,0.00019999,2]
[363779766,1748868666540,-209.86525869,0.00019999,2]
[363779767,1748868666551,-234.41609969,0.0002,2]
[363779768,1748868666562,-166659.30640058,0.0002,2]
[363779769,1748868666571,-1905209.612069,0.0002,2]
[363779770,1748868666580,-5800.0,0.0002,2]
[363779771,1748868666593,-2163.65389946,0.0002,2]
[363779772,1748868666602,-239519.9628106,0.0002,4]
[363779773,1748868666611,-1144892.24682983,0.0002,2]
[363779774,1748868666901,-420.0,0.00019589,2]
[363779775,1748868666912,-137.2406161,0.0002,2]
[363779776,1748868666935,-1549.38905806,0.0002,2]
[363779777,1748868666946,-2651.29199995,0.0002,2]
[363779778,1748868666958,-258.1079535,0.0002,2]
[363779779,1748868666969,-310736.16623833,0.0002,2]
[363779780,1748868667415,-420.0,0.00019726,2]
[363779781,1748868667424,-234.52451007,0.00019726,2]
[363779782,1748868667436,-843.80548993,0.00019726,2]
[363779783,1748868667446,-420.0,0.00019863,2]
[363779784,1748868667456,-1078.33,0.00019863,2]
[363779785,1748868667466,-1948.69534375,0.0002,2]
[363779786,1748868667477,-1964.20781236,0.0002,2]
[363779787,1748868667493,-85114.63513577,0.0002,2]
[363779788,1748868667508,-1641.64000519,0.0002,2]
[363779789,1748868667519,-1544.30988308,0.0002,2]
[363779790,1748868667604,-587.7298081,0.0002,2]
[363779791,1748868667623,-98642.6649227,0.0002,2]
[363779792,1748868681392,-420.0,0.00019178,2]
[363779793,1748868681403,-7910.0,0.00019178,2]
[363779794,1748868681414,-3750.1,0.00019178,2]
[363779795,1748868681424,-1461.4,0.00019315,2]
[363779797,1748868810529,151.47988208,0.00018201,2]
[363779799,1748868885029,237.68,0.00013699,2]
[363779801,1748868906063,20740.05,0.00018599,2]
[363779802,1748868976459,1000.0,0.00018458,2]
[363779806,1748869076986,164.82,0.00018458,2]
[363779810,1748869164830,2248.58,0.00018458,2]
[363779811,1748869211825,203.0,0.000181,2]
[363779812,1748869230299,167.81,0.00018458,2]
[363779813,1748869358851,500.0,0.00023,30]
[363779814,1748869373351,500.0,0.00023,30]
[363779815,1748869383356,500.0,0.00023,30]
[363779816,1748869402710,500.0,0.00023,30]
[363779817,1748869417540,512.65409384,0.00023,30]
[363779820,1748869511278,203.0,0.000181,2]
[363779821,1748869512656,188.9552564,0.00018,2]
[363779822,1748869512687,150.0,0.00018,2]
[363779823,1748869512720,245.78624627,0.00018,2]
[363779824,1748869573397,161.87,0.00018901,2]
[363779825,1748869666457,315.49,0.00018548,2]
[363779827,1748869739520,506.66,0.00016614,2]
[363779828,1748869739723,506.66,0.00018878,2]
[363779839,1748869831706,-170.41,0.00019105,2]
[363779840,1748869831716,-151.0,0.00019166,2]
[363779841,1748869831726,-207.4,0.00019166,2]
[363779842,1748869831736,-87.64002,0.00019168,2]
[363779843,1748869831855,-356.62998,0.00019168,2]
[363779844,1748869831866,-300.0,0.00019177,2]
[363779845,1748869831875,-782.42077273,0.00019177,2]
[363779846,1748869831910,-252.29,0.00019177,2]
[363779847,1748869837590,-165.28922727,0.00019177,2]
[363779848,1748869837600,-145.90970093,0.00019177,2]
[363779871,1748869837927,-154.09029907,0.00019177,2]
[363779873,1748869837938,-424.13951946,0.00019178,2]
[363779875,1748869837947,-444.47,0.00019178,2]
[363779877,1748869837957,-422.13762454,0.00019178,2]
[363779879,1748869837967,-529.72,0.00019178,2]
[363779881,1748869837977,-422.47206937,0.00019178,2]
[363779882,1748869837986,-544.92111044,0.00019178,2]
[363779884,1748869837995,-420.0,0.00019178,2]
[363779886,1748869838004,-420.0,0.00019178,2]
[363779888,1748869838013,-420.0,0.00019178,2]
[363779890,1748869838023,-420.0,0.00019178,2]
[363779892,1748869838032,-420.0,0.00019178,2]
[363779894,1748869838042,-508.1928601,0.00019178,2]
[363779896,1748869838051,-422.42082205,0.00019178,2]
[363779898,1748869838061,-467.653448,0.00019178,2]
[363779900,1748869838071,-420.0,0.00019178,2]
[363779902,1748869838080,-374.26231896,0.00019178,2]
[363779905,1748869838097,-45.73768104,0.00019178,2]
[363779907,1748869838106,-355.77229868,0.00019178,2]
[363779909,1748869838118,-64.22770132,0.00019178,2]
[363779911,1748869838127,-420.0,0.00019178,2]
[363779913,1748869838137,-420.0,0.00019178,2]
[363779915,1748869838146,-420.0,0.00019178,2]
[363779917,1748869838156,-420.0,0.00019178,2]
[363779919,1748869838165,-422.86863618,0.00019178,2]
[363779921,1748869838175,-420.0,0.00019178,2]
[363779923,1748869838184,-422.14961322,0.00019178,2]
[363779925,1748869838194,-420.0,0.00019178,2]
[363779927,1748869838203,-420.0,0.00019178,2]
[363779929,1748869838212,-404.89898453,0.00019178,2]
[363779931,1748869838222,-131.63714428,0.00019178,2]
[363779975,1748869838655,302.0,0.00019001,2]
[363780089,1748869839762,-288.36285572,0.00019178,2]
[363780092,1748869839772,-420.0,0.00019178,2]
[363780095,1748869839781,-420.0,0.00019178,2]
[363780098,1748869839791,-437.42569168,0.00019178,2]
[363780101,1748869839801,-420.0,0.00019178,2]
[363780104,1748869839811,-420.0,0.00019178,2]
[363780107,1748869839821,-420.0,0.00019178,2]
[363780110,1748869839830,-170.87944044,0.00019178,2]
[363780112,1748869839839,-420.0,0.00019178,2]
[363780114,1748869839848,-420.0,0.00019178,2]
[363780116,1748869839858,-420.0,0.00019178,2]
[363780118,1748869839867,-520.04903538,0.00019178,2]
[363780120,1748869839877,-420.0,0.00019178,2]
[363780122,1748869839887,-420.0,0.00019178,2]
[363780125,1748869839896,-420.0,0.00019178,2]
[363780127,1748869839905,-420.0,0.00019178,2]
[363780130,1748869839915,-433.34961774,0.00019178,2]
[363780134,1748869839925,-420.0,0.00019178,2]
[363780136,1748869839934,-420.0,0.00019178,2]
[363780139,1748869839945,-422.98147524,0.00019178,2]
[363780142,1748869839955,-423.82435952,0.00019178,2]
[363780145,1748869839965,-420.0,0.00019178,2]
[363780149,1748869839976,-425.88485413,0.00019178,2]
[363780152,1748869839985,-420.64775578,0.00019178,2]
[363780154,1748869839995,-420.0,0.00019178,2]
[363780157,1748869840005,-421.42519659,0.00019178,2]
[363780160,1748869840015,-422.71644474,0.00019178,2]
[363780164,1748869840025,-420.0,0.00019178,2]
[363780167,1748869840034,-422.47556227,0.00019178,2]
[363780169,1748869840044,-420.0,0.00019178,2]
[363780171,1748869840054,-422.11568467,0.00019178,2]
[363780174,1748869840064,-2140.392003,0.00019178,2]
[363780177,1748869840073,-234.0364231,0.00019178,2]
[363780190,1748869840126,-185.9635769,0.00019178,2]
[363780192,1748869840136,-420.0,0.00019178,2]
[363780194,1748869840145,-420.0,0.00019178,2]
[363780197,1748869840155,-420.0,0.00019178,2]
[363780201,1748869840165,-420.0,0.00019178,2]
[363780203,1748869840175,-151.877351,0.00019178,2]
[363780207,1748869840184,-420.0,0.00019178,2]
[363780210,1748869840196,-425.76873927,0.00019178,2]
[363780213,1748869840205,-420.0,0.00019178,2]
[363780216,1748869840215,-155.609569,0.00019178,2]
[363780219,1748869840225,-443.59599346,0.00019178,2]
[363780222,1748869840236,-420.0,0.00019178,2]
[363780225,1748869840247,-223.251699,0.00019178,2]
[363780227,1748869840257,-420.0,0.00019178,2]
[363780230,1748869840267,-420.0,0.00019178,2]
[363780233,1748869840276,-429.88405123,0.00019178,2]
[363780236,1748869840287,-410.0,0.00019178,2]
[363780239,1748869840296,-559.94935827,0.00019178,2]
[363780242,1748869840306,-420.0,0.00019178,2]
[363780245,1748869840316,-424.26753314,0.00019178,2]
[363780248,1748869840325,-424.06677578,0.00019178,2]
[363780251,1748869840335,-2003.281763,0.00019178,2]
[363780254,1748869840344,-420.0,0.00019178,2]
[363780257,1748869840353,-429.00068671,0.00019178,2]
[363780260,1748869840363,-322.17921871,0.00019178,2]
[363780263,1748869840373,-420.0,0.00019178,2]
[363780266,1748869840383,-426.62376508,0.00019178,2]
[363780269,1748869840392,-420.0,0.00019178,2]
[363780272,1748869840402,-420.0,0.00019178,2]
[363780275,1748869840412,-436.59855197,0.00019178,2]
[363780278,1748869840422,-420.0,0.00019178,2]
[363780281,1748869840431,-420.0,0.00019178,2]
[363780284,1748869840441,-420.0,0.00019178,2]
[363780287,1748869840451,-424.67358799,0.00019178,2]
[363780290,1748869840462,-420.0,0.00019178,2]
[363780293,1748869840472,-351.46080608,0.00019178,2]
[363780296,1748869840482,-198.331608,0.00019178,2]
[363780299,1748869840492,-435.23113764,0.00019178,2]
[363780302,1748869840503,-157.27915047,0.00019178,2]
[363780305,1748869840513,-420.0,0.00019178,2]
[363780308,1748869840522,-420.0,0.00019178,2]
[363780311,1748869840534,-427.30045009,0.00019178,2]
[363780314,1748869840543,-420.19,0.00019178,2]
[363780316,1748869840553,-420.0,0.00019178,2]
[363780319,1748869840563,-420.0,0.00019178,2]
[363780322,1748869840573,-420.0,0.00019178,2]
[363780325,1748869840583,-443.45430289,0.00019178,2]
[363780328,1748869840593,-420.0,0.00019178,2]
[363780331,1748869840602,-420.0,0.00019178,2]
[363780334,1748869840612,-420.0,0.00019178,2]
[363780337,1748869840622,-420.0,0.00019178,2]
[363780340,1748869840632,-420.0,0.00019178,2]
[363780343,1748869840642,-420.0,0.00019178,2]
[363780346,1748869840652,-420.0,0.00019178,2]
[363780349,1748869840661,-420.0,0.00019178,2]
[363780352,1748869840671,-431.83597243,0.00019178,2]
[363780355,1748869840681,-423.62003869,0.00019178,2]
[363780358,1748869840692,-487.90591479,0.00019178,2]
[363780361,1748869840702,-420.0,0.00019178,2]
[363780364,1748869840711,-420.0,0.00019178,2]
[363780367,1748869840721,-420.0,0.00019178,2]
[363780370,1748869840731,-420.0,0.00019178,2]
[363780373,1748869840741,-178.946867,0.00019178,2]
[363780376,1748869840751,-420.0,0.00019178,2]
[363780379,1748869840760,-420.0,0.00019178,2]
[363780382,1748869840770,-421.86908494,0.00019178,2]
[363780385,1748869840779,-420.0,0.00019178,2]
[363780388,1748869840790,-427.4025291,0.00019178,2]
[363780391,1748869840799,-420.0,0.00019178,2]
[363780393,1748869840808,-420.0,0.00019178,2]
[363780396,1748869840818,-420.0,0.00019178,2]
[363780399,1748869840827,-420.0,0.00019178,2]
[363780401,1748869840837,-420.0,0.00019178,2]
[363780404,1748869840847,-420.0,0.00019178,2]
[363780405,1748869840857,-420.0,0.00019178,2]
[363780407,1748869840867,-420.0,0.00019178,2]
[363780410,1748869840878,-444.86,0.00019178,2]
[363780412,1748869840887,-420.0,0.00019178,2]
[363780414,1748869840896,-420.0,0.00019178,2]
[363780417,1748869840906,-420.0,0.00019178,2]
[363780420,1748869840916,-300.07,0.00019178,2]
[363780423,1748869840926,-500.0,0.00019178,2]
[363780426,1748869840935,-420.0,0.00019178,2]
[363780429,1748869840946,-420.0,0.00019178,2]
[363780432,1748869840956,-420.0,0.00019178,2]
[363780435,1748869840965,-420.0,0.00019178,2]
[363780438,1748869840975,-420.0,0.00019178,2]
[363780441,1748869840984,-233.18557803,0.00019178,2]
[363780444,1748869840994,-420.0,0.00019178,2]
[363780447,1748869841004,-420.0,0.00019178,2]
[363780450,1748869841014,-432.99943548,0.00019178,2]
[363780453,1748869841024,-420.0,0.00019178,2]
[363780456,1748869841033,-420.0,0.00019178,2]
[363780459,1748869841043,-420.0,0.00019178,2]
[363780462,1748869841053,-420.0,0.00019178,2]
[363780464,1748869841063,-420.0,0.00019178,2]
[363780467,1748869841074,-420.0,0.00019178,2]
[363780470,1748869841084,-420.0,0.00019178,2]
[363780473,1748869841094,-420.0,0.00019178,2]
[363780476,1748869841104,-172.64235705,0.00019178,2]
[363780479,1748869841114,-500.0,0.00019178,2]
[363780482,1748869841123,-420.0,0.00019178,2]
[363780485,1748869841133,-420.0,0.00019178,2]
[363780488,1748869841142,-420.0,0.00019178,2]
[363780491,1748869841151,-420.0,0.00019178,2]
[363780494,1748869841161,-420.0,0.00019178,2]
[363780497,1748869841171,-420.0,0.00019178,2]
[363780500,1748869841181,-353.39707697,0.00019178,2]
[363780503,1748869841191,-420.0,0.00019178,2]
[363780507,1748869841202,-420.0,0.00019178,2]
[363780509,1748869841213,-420.0,0.00019178,2]
[363780513,1748869841222,-420.0,0.00019178,2]
[363780515,1748869841232,-420.0,0.00019178,2]
[363780519,1748869841245,-420.0,0.00019178,2]
[363780521,1748869841254,-569.54692898,0.00019178,2]
[363780525,1748869841264,-420.0,0.00019178,2]
[363780527,1748869841273,-420.0,0.00019178,2]
[363780530,1748869841284,-420.0,0.00019178,2]
[363780533,1748869841293,-420.0,0.00019178,2]
[363780536,1748869841303,-420.0,0.00019178,2]
[363780539,1748869841314,-420.0,0.00019178,2]
[363780542,1748869841324,-420.0,0.00019178,2]
[363780545,1748869841334,-468.04,0.00019178,2]
[363780547,1748869841344,-422.84965486,0.00019178,2]
[363780550,1748869841353,-420.0,0.00019178,2]
[363780553,1748869841363,-422.64116115,0.00019178,2]
[363780556,1748869841373,-420.0,0.00019178,2]
[363780559,1748869841383,-165.96,0.00019178,2]
[363780562,1748869841393,-423.69288203,0.00019178,2]
[363780565,1748869841403,-487.16018424,0.00019178,2]
[363780568,1748869841413,-423.44644112,0.00019178,2]
[363780572,1748869841423,-420.0,0.00019178,2]
[363780575,1748869841433,-420.0,0.00019178,2]
[363780578,1748869841444,-425.07942469,0.00019178,2]
[363780581,1748869841454,-420.0,0.00019178,2]
[363780583,1748869841464,-422.8178081,0.00019178,2]
[363780587,1748869841474,-420.0,0.00019178,2]
[363780591,1748869841484,-420.0,0.00019178,2]
[363780594,1748869841494,-544.04,0.00019178,2]
[363780597,1748869841503,-420.0,0.00019178,2]
[363780600,1748869841514,-420.0,0.00019178,2]
[363780603,1748869841523,-317.98,0.00019178,2]
[363780606,1748869841533,-420.0,0.00019178,2]
[363780609,1748869841543,-420.0,0.00019178,2]
[363780612,1748869841552,-420.0,0.00019178,2]
[363780615,1748869841562,-420.0,0.00019178,2]
[363780618,1748869841571,-420.0,0.00019178,2]
[363780621,1748869841581,-420.0,0.00019178,2]
[363780624,1748869841591,-420.0,0.00019178,2]
[363780627,1748869841601,-420.0,0.00019178,2]
[363780630,1748869841611,-420.0,0.00019178,2]
[363780632,1748869841622,-420.0,0.00019178,2]
[363780634,1748869841632,-431.64196247,0.00019178,2]
[363780636,1748869841642,-420.0,0.00019178,2]
[363780638,1748869841652,-420.0,0.00019178,2]
[363780640,1748869841662,-420.0,0.00019178,2]
[363780642,1748869841672,-420.0,0.00019178,2]
[363780644,1748869841681,-428.1567191,0.00019178,2]
[363780646,1748869841692,-420.0,0.00019178,2]
[363780648,1748869841704,-420.0,0.00019178,2]
[363780650,1748869841714,-422.46573103,0.00019178,2]
[363780652,1748869841725,-420.0,0.00019178,2]
[363780654,1748869841736,-536.53,0.00019178,2]
[363780656,1748869841746,-420.0,0.00019178,2]
[363780659,1748869841757,-420.0,0.00019178,2]
[363780661,1748869841767,-420.0,0.00019178,2]
[363780663,1748869841777,-420.0,0.00019178,2]
[363780665,1748869841787,-321.91881381,0.00019178,2]
[363780667,1748869841797,-420.0,0.00019178,2]
[363780669,1748869841807,-420.0,0.00019178,2]
[363780671,1748869841817,-420.0,0.00019178,2]
[363780673,1748869841827,-425.57543974,0.00019178,2]
[363780675,1748869841837,-420.0,0.00019178,2]
[363780677,1748869841847,-420.0,0.00019178,2]
[363780679,1748869841858,-420.0,0.00019178,2]
[363780681,1748869841867,-420.0,0.00019178,2]
[363780683,1748869841878,-424.9650623,0.00019178,2]
[363780685,1748869841888,-420.0,0.00019178,2]
[363780687,1748869841898,-420.0,0.00019178,2]
[363780689,1748869841909,-420.0,0.00019178,2]
[363780691,1748869841918,-420.0,0.00019178,2]
[363780693,1748869841928,-420.0,0.00019178,2]
[363780695,1748869841939,-420.0,0.00019178,2]
[363780696,1748869841951,-420.0,0.00019178,2]
[363780698,1748869841963,-349.51025287,0.00019178,2]
[363780700,1748869841972,-467.34,0.00019178,2]
[363780702,1748869841983,-420.0,0.00019178,2]
[363780703,1748869841993,-420.0,0.00019178,2]
[363780704,1748869842004,-420.0,0.00019178,2]
[363780705,1748869842014,-428.66094248,0.00019178,2]
[363780706,1748869842024,-420.0,0.00019178,2]
[363780707,1748869842034,-420.0,0.00019178,2]
[363780708,1748869842044,-420.0,0.00019178,2]
[363780709,1748869842054,-420.0,0.00019178,2]